Cogmind - Beta 14 @@@ ROGUE MODE // 2025.04.26 @ 11:13:57 Player: DuckBoy Result: Destroyed by KN-CVI(R) with Subdweller Machine Gun Performance ------------- Evolutions (0) 0 Regions Visited (2) 400 Robots Destroyed (23) 115 Value Destroyed (513) 513 Prototype IDs (0) 0 Alien Tech Used (0) 0 Bonus (0) 0 TOTAL SCORE: 1028 Bonus ------- None Cogmind --------- Core Integrity 0/250 Matter 150/300 Energy 200/200 System Corruption 2% Temperature Cool (0) Movement Treading (160) Location -10/Subcaves Parts ------- > --- POWER (1) -------- Subdweller Power Source > --- PROPULSION (2) --- Light Treads Light Treads > --- UTILITY (2) ------ Disposable Heat Sink Disposable Heat Sink > --- WEAPON (2) ------- Light Cannon > --- INVENTORY (5) ---- Ion Engine Subdweller Monowheel High-capacity Storage Unit Scrap Shield Fragment (47) Peak State ------------ > --- POWER ------------ Ion Engine > --- PROPULSION ------- Light Treads Subdweller Monowheel > --- UTILITY ---------- Scrap Shield > --- WEAPON ----------- Medium Laser Subdweller Laser > --- INVENTORY -------- Huge Storage Unit Structural Scanner Sensor Array Light Cannon Hammer [Rating: 11] Favorites ----------- Power Ion Engine Engine Ion Engine Propulsion Wheel Treads Light Treads Wheel Wheel Utility Improved Terrain Scanner Device Improved Terrain Scanner Storage Medium Storage Unit Protection Scrap Shield Weapon Medium Laser Energy Gun Medium Laser Ballistic Gun Light Assault Rifle Ballistic Cannon Light Cannon Launcher Grenade Launcher Build | -11 -10 -10 ------- Run | Yrd Mat Sub Slots Evolved . | . . . Power . | . . . Propulsion . | . . . Utility . | . . . Weapon . | . . . Parts Attached 25 | 7 12 6 Power 3 | 1 1 1 Engine 3 | 1 1 1 Core . | . . . Reactor . | . . . Propulsion 8 | 2 5 1 Treads 4 | . 3 1 Leg . | . . . Wheel 4 | 2 2 . Hover . | . . . Flight . | . . . Utility 6 | 2 2 2 Device 3 | 1 . 2 Storage 2 | 1 1 . Processor . | . . . Hackware . | . . . Protection 1 | . 1 . Artifact . | . . . Weapon 8 | 2 4 2 Energy Gun 5 | 2 3 . Energy Cannon . | . . . Ballistic Gun 1 | . 1 . Ballistic Cannon 1 | . . 1 Launcher 1 | . . 1 Special Weapon . | . . . Impact Weapon . | . . . Slashing Weapon . | . . . Piercing Weapon . | . . . Special Melee Weapon . | . . . Unidentified Prototypes . | . . . Parts Lost 9 | . 6 3 Power 1 | . 1 . Propulsion 2 | . 2 . Utility 1 | . . 1 Weapon 5 | . 3 2 Highest Loss Streak 5 | . 5 1 To Critical Strikes . | . . . Average Slot Usage (%) 93 | . 95 85 Engine 13 | . 13 14 Treads 11 | . 7 22 Wheel 16 | . 20 5 Device 12 | . 11 16 Storage 8 | . 11 . Protection 2 | . 2 . Energy Gun 18 | . 22 5 Ballistic Gun 3 | . 4 . Ballistic Cannon 3 | . . 12 Launcher 2 | . . 7 Peak Build Rating 11 | 9 11 11 Average Rating 9 | 5 9 8 On Entrance 6 | . 9 11 Naked Turns . | . . . Heaviest Build 29 | 15 29 29 Greatest Support 40 | 20 20 40 Greatest Overweight (x) 3 | 3 2 1 Average Overweight (x) . | . . . Largest Inventory Capacity 10 | 8 10 5 Average Capacity 7 | 7 8 5 Most Carried 10 | 4 10 5 Average Carried 6 | 2 7 4 Final Capacity 8 | 8 5 5 Final Carried 5 | 4 5 4 Class Distribution -------------------- 58% | Mutant 25% | Scavenger-Mutant 16% | Subdweller-Mutant Dominant Class ---------------- Mutant | -10/Materials Mutant | -10/Subcaves Resources | -11 -10 -10 ----------- Run | Yrd Mat Sub Matter Collected 576 | 270 154 152 Remotely . | . . . Salvage Created 900 | 96 632 172 Parts 49 | 5 34 10 Haulers Intercepted 2 | . 2 . Recyclers Shooed . | . . . Parts Field Recycled . | . . . Retrieved Matter . | . . . Parts Self-Destructed 8 | . . 8 Prevented . | . . . Kills | -11 -10 -10 ------- Run | Yrd Mat Sub Combat Hostiles Destroyed 15 | . 11 4 Guns 12 | . 11 1 Cannons 2 | . . 2 AOE 1 | . . 1 Classes Destroyed 9 | 2 6 1 Worker 1 | . 1 . Builder 1 | . 1 . Tunneler 1 | 1 . . Hauler 2 | . 2 . Recycler 1 | 1 . . Watcher 2 | . 2 . Swarmer 4 | . 3 1 Grunt 8 | . 8 . Subdweller 3 | . . 3 Best Kill Streak 2 | 2 2 2 Combat Bots Only 2 | . 1 2 Max Kills in Single Turn 2 | 1 2 1 Gunslinging . | . . . Exploded 1 | . . 1 Melee . | . . . Uniques/NPCs Destroyed . | . . . Combat | -11 -10 -10 -------- Run | Yrd Mat Sub Hostile Shots Fired 117 | . 58 59 Missed 33 | . 16 17 Damage Taken 1366 | . 542 824 Core 267 | . 48 219 Absorbed by Shields . | . . . Core Remaining (%) 100 | 100 . . Volleys Fired 124 | 5 57 62 Largest 2 | 2 2 2 Hottest 110 | 90 110 110 Shots Fired 190 | 10 107 73 Gun 134 | 10 107 17 Cannon 54 | . . 54 Launcher 2 | . . 2 Special . | . . . Kinetic 83 | . 29 54 Thermal 85 | 5 63 17 Explosive 2 | . . 2 Electromagnetic 20 | 5 15 . Robot Hit Streak 15 | 3 11 15 Robot Miss Streak 3 | 1 3 2 Penetration Max . | . . . Secondary Targets 2 | . 1 1 Max Gunslinging Chain 1 | . 1 1 Shots Hit Robots 139 | 7 72 60 Core Hits 47 | 3 31 13 Critical Kills . | . . . Critical Parts Destroyed . | . . . Critical Strikes 10 | . 5 5 Burn 5 | . 5 . Destroy 1 | . . 1 Blast 4 | . . 4 Melee Attacks . | . . . Impact . | . . . Slashing . | . . . Piercing . | . . . Sneak Attacks . | . . . Combat Hostiles . | . . . Follow-up Attacks . | . . . Damage Inflicted 1730 | 88 834 808 Guns 1128 | 88 834 206 Cannons 506 | . . 506 Explosions 96 | . . 96 Melee . | . . . Ramming . | . . . Kinetic 660 | . 154 506 Thermal 789 | 39 544 206 Explosive 96 | . . 96 Electromagnetic 185 | 49 136 . Impact . | . . . Slashing . | . . . Piercing . | . . . Highest Corruption 2 | . 2 2 Average Corruption 1 | . 1 2 Corruption Purged . | . . . Corruption Blocked . | . . . Effects 8 | . 4 4 Message Errors 3 | . 2 1 Matter Fused 4 | . 2 2 Energy Discharges 1 | . . 1 Overload Shots . | . . . Overflow Damage . | . . . Projectiles . | . . . Explosions . | . . . Melee . | . . . Knockbacks 9 | . . 9 Impact . | . . . Kinetic 9 | . . 9 Secondary . | . . . Self-Inflicted Damage 23 | . . 23 Shots 2 | . . 2 Rammed . | . . . Targets Rammed . | . . . Kicked . | . . . Crushed . | . . . Highest Temperature 355 | 150 355 2 Average Temperature 68 | 76 69 2 Received Heat Transfer 396 | . 306 90 Effects 3 | . 3 . Interference 2 | . 2 . Damage (minor) 1 | . 1 . Siege Activations . | . . . Robots Corrupted . | . . . Combat Hostiles . | . . . Parts Fried . | . . . Impact Corruptions . | . . . Robots Melted . | . . . Combat Hostiles . | . . . Parts Melted 9 | . 8 1 Heat Transferred 2469 | 111 1961 397 Parts Sabotaged . | . . . Parts Stolen . | . . . Parts Stripped . | . . . Power Chain Reactions . | . . . Alert | -11 -10 -10 ------- Run | Yrd Mat Sub Peak Influence 269 | 10 269 . Initial 6 | . 6 . Average 139 | 3 150 . Maximum Alert Level 1 | . 1 . Low Security (%) 67 | 100 64 . Level 1 32 | . 35 . Level 2 . | . . . Level 3 . | . . . Level 4 . | . . . Level 5 . | . . . High Security . | . . . Max Security . | . . . Squads Dispatched 4 | . 4 . Investigation 3 | . 3 . Extermination . | . . . Reinforcement 1 | . 1 . Assault . | . . . Garrison . | . . . Intercept . | . . . Searches Triggered . | . . . Construction Impeded . | . . . Haulers Reinforced . | . . . Active Scanning Responses . | . . . Cargo Convoy Interrupts . | . . . Stealth | -11 -10 -10 --------- Run | Yrd Mat Sub Distress Signals 1 | . 1 . Communications Jammed . | . . . Distress Signals . | . . . Times Spotted 29 | . 20 9 Peak Tracking Total 5 | . 3 5 Tactical Retreats 1 | . 1 . Traps | -11 -10 -10 ------- Run | Yrd Mat Sub Traps Triggered 1 | . 1 . Indirectly . | . . . Trap Hack Attempts . | . . . Triggered . | . . . Disarmed 6 | . 6 . Reprogrammed . | . . . Reused . | . . . Traps Extracted . | . . . Installed . | . . . Triggered . | . . . Machines | -11 -10 -10 ---------- Run | Yrd Mat Sub Machines Disabled . | . . . Max in Single Turn . | . . . Machines Repaired . | . . . Machines Dismantled . | . . . Machines Sabotaged . | . . . Overloaded Fab Kills . | . . . Hacking | -11 -10 -10 --------- Run | Yrd Mat Sub Machines Accessed 9 | . 9 . Terminals 7 | . 7 . Fabricators . | . . . Repair Stations . | . . . Recycling Units 2 | . 2 . Scanalyzers . | . . . Garrison Access . | . . . Total Hacks 25 | . 25 . Successful 19 | . 19 . Failed 6 | . 6 . Catastrophic . | . . . Database Lockouts . | . . . Manual 18 | . 18 . Terminals 23 | . 23 . Fabricators . | . . . Repair Stations . | . . . Recycling Units 2 | . 2 . Scanalyzers . | . . . Garrison Access . | . . . Terminal Hacks 9 | . 9 . Robot Analysis 4 | . 4 . Branch Access Points 1 | . 1 . Terminal Index 1 | . 1 . Recycling Unit Index 1 | . 1 . Disarm Traps 1 | . 1 . Zone Layout 1 | . 1 . Fabricator Hacks . | . . . Repair Station Hacks . | . . . Recycling Unit Hacks . | . . . Scanalyzer . | . . . Garrison Access Hacks . | . . . Unauthorized Hacks 10 | . 10 . Terminals 8 | . 8 . Track 1 | . 1 . Assimilate 3 | . 3 . Botnet 3 | . 3 . Operators 1 | . 1 . Fabricators . | . . . Repair Stations . | . . . Recycling Units 2 | . 2 . Tunnel 2 | . 2 . Scanalyzers . | . . . Garrison Access . | . . . Data Cores Recovered . | . . . Used . | . . . Hacking Detections 6 | . 6 . Full Trace Events 1 | . 1 . Feedback Events 1 | . 1 . Corruption 1 | . 1 . Feedback Blocked . | . . . Robot Schematics Acquired . | . . . Robots Built . | . . . Authchips . | . . . Time . | . . . Total Robot Build Rating . | . . . Part Schematics Acquired . | . . . Parts Built . | . . . Authchips . | . . . Time . | . . . Total Part Build Rating . | . . . Parts Repaired . | . . . Time . | . . . Parts Recycled . | . . . Recycled Matter . | . . . Retrieved Matter . | . . . Retrieved Components . | . . . Parts Scanalyzed . | . . . Part Schematics Acquired . | . . . Parts Damaged . | . . . Bothacking | -11 -10 -10 ------------ Run | Yrd Mat Sub Used RIF Installer . | . . . Robots Hacked . | . . . Non-combat . | . . . Combat . | . . . Robot Hacks Applied . | . . . Relay Couplers Released . | . . . Fabnet Peak Effective % . | . . . Robots Rewired . | . . . Allies Hacked . | . . . Hacks Repelled . | . . . Allies | -11 -10 -10 -------- Run | Yrd Mat Sub Total Allies 1 | . 1 . Largest Group 1 | . 1 . Highest-Rated Group 10 | . 10 . Highest-Rated Ally 10 | . 10 . Total Orders . | . . . Ally Attacks . | . . . Total Damage . | . . . Kills . | . . . Allies Corrupted . | . . . Allies Melted . | . . . Intel | -11 -10 -10 ------- Run | Yrd Mat Sub Robot Analysis Total 4 | . 4 . Derelict Logs Recovered . | . . . Drone Launches . | . . . Drone Recoveries . | . . . Exploration | -11 -10 -10 ------------- Run | Yrd Mat Sub Turns Passed 1288 | 70 898 320 Spaces Moved 860 | 46 685 129 Core 5 | 5 . . Treads 65 | . 16 49 Legs . | . . . Wheels 790 | 41 669 80 Hover . | . . . Flight . | . . . Fastest Speed 50 | 50 80 110 Average Speed 98 | 84 93 129 Slowest Speed 240 | 200 240 160 Overloaded Moves . | . . . Propulsion Burnouts . | . . . Robots Hopped . | . . . Cave-ins Triggered . | . . . Exploration Rate (%) 37 | 4 97 11 Regions Visited 2 Branch Regions 1 Pre-discovered Areas 2 | . 2 . Known Exits Taken . | . . . Unknown Exits Taken 2 | 1 1 . Scrap Searched . | . . . Spaces Dug . | . . . Terrain Destroyed 7 | . . 7 Melee . | . . . Projectile . | . . . AOE 7 | . . 7 Terrain Rammed . | . . . Walls Destroyed . | . . . Machines Disabled . | . . . Actions | -11 -10 -10 --------- Run | Yrd Mat Sub Total 1110 | 63 841 206 Wait 75 | 2 65 8 Move 858 | 45 684 129 Hop . | . . . Pick Up 17 | 4 13 . Fast Attach 12 | 7 3 2 Attach 6 | . 5 1 Detach . | . . . Swap 7 | . 4 3 Drop 10 | . 9 1 Fire 124 | 5 57 62 Melee . | . . . Ram . | . . . Kick . | . . . Crush . | . . . Escape Stasis . | . . . Rewire . | . . . Trap . | . . . Miscellaneous 1 | . 1 . Route ------- -11/Scrapyard -10/Materials (discovered 6 exits: [*Mat x3] / *Min x2 / [*Sub]) -10/Subcaves History --------- Turn | Location | Event 24 | -11/Scrapyard | Discovered new exit (range 15) 71 | -11/Scrapyard | Entered Materials 99 | -10/Materials | Discovered new exit (range 14) 173 | -10/Materials | Discovered new exit (range 5) 208 | -10/Materials | Discovered new exit (range 12) 279 | -10/Materials | Discovered new exit (range 9) 302 | -10/Materials | Build established: Mutant 445 | -10/Materials | Discovered new exit (range 15) 550 | -10/Materials | Lost 5 parts (1p2n2w) 571 | -10/Materials | Derelicts attacked the area 693 | -10/Materials | Identified exit to Mines 958 | -10/Materials | Discovered new exit (range 9) 969 | -10/Materials | Entered Subcaves 970 | -10/Subcaves | Ambushed by Subdwellers from Twisted Machinery 999 | -10/Subcaves | Core integrity fell below 50% 1055 | -10/Subcaves | Core integrity fell below 20% 1289 | -10/Subcaves | Destroyed by KN-CVI(R) with Subdweller Machine Gun Last Messages --------------- 01212_ 0G-PZU(R) knocked back. 01218_ :#TNAD07 #2GR2O&SWPQHFYGUAL2KG>40:&MIZ/T 01220_ 0G-PZU(R) knocked back. 01225_ Subatomizers dissect the Sub. Power Source. 01230_ Acquired 1 matter. 01240_ Subatomizers dissect the Sub. Power Source. 01251_ 0G-PZU(R) Sub. Optics blasted off. 01252_ Subatomizers dissect the Sub. Power Source. 01253_ 0G-PZU(R) knocked back. 01255_ 0G-PZU(R) Sub. Power Source blasted off. 01257_ 0G-PZU(R) knocked back. 01259_ 0G-PZU(R) destroyed. 01264_ Acquired 12 matter. 01265_ Subatomizers dissect the Sub. Power Source. 01266_ Acquired 3 matter. 01267_ Acquired 4 matter. 01270_ Acquired 1 matter. 01279_ Subatomizers dissect the Sub. Power Source. 01284_ Grenade Launcher destroyed. 01285_ 1N-MRM(R) Sub. Power Source blasted off. Map ----- +----------------------------------------------------+ | ?????????????????????????????????????????????????? | | ?????????????????????????????????????????????????? | | ?????????????????????????????????????????????????? | | ?????????????????????????????????????????????????? | | ?????????????????????????????????????????????????? | | ?????????????????????????????????????????????????? | | ???????????????????????????## ???????????????????? | | ??????????????????????????# ???????????????????? | | ??????????????????????????? ??????????????????? | | ????????????????????? ??? ^ #??????????????????? | | ???????????????????# ?? #??????????????????? | | ???????????????????# ?? ##?????????????????? | | ???????????????????? # ??# #?????????????????? | | ????????????????????? # ?# ##???##???????????? | | ?????????????????????? ## #??? ###?????????? | | ???????????????????????# # ??? ##????????? | | ???????????????????????# #??# #????????? | | ???????????????????????# #? ##???????? | | ????????????????????????? % ## #???????? | | ??????????????????????????#RR # ##???????? | | ?????????????????????????## % % #???????? | | ?????????????????????????# ####?????? | | ????????????????????????## ! #?????? | | ????????????????????????# & % *= #?????? | | ????????##########??????#=&*%! # # # #?????? | | ???????## ## ########@ ##?##### #?????? | | ??????##" # < < ##??#### #??????? | | ??????#""" %* < # #???# # #??????? | | ??????#"""" ## % ! ###%% #???## #??????? | | ??????###" ## =%* ### ##??# #??????? | | ????????# ### # #??##[%%% #??????? | | ????????# ### #??# & #??????? | | ????????# ### ## ##?## ## ##??????? | | ???????## #?# ## # # #### # #???????? | | ???????# ### ## ## "#""" ??????? | | ???????# ## ## """""##?????? | | ???????# ### ### # #""""##??????? | | ???????# ### ## ##?#####"""##???????? | | ??????# ## #### ###??????#"""#????????? | | ??????# #??# ##????????##"##????????? | | ??????# ### #?? ##???????????##?????????? | | ??????# #??# #? ##???????????????????????? | | ????# #??? ##????????????????????????? | | ???? #???? ??????????????????????????? | | ???? # ?????? ??????????????????????????? | | ?????###?????? ??????????????????????????? | | ????????????? ??????????????????????????? | | ????????????? ## ?????????????????????????? | | ????????????## #??# ## ????????????????????????? | | ?????????????##????##?###????????????????????????? | +----------------------------------------------------+ Best States ------------- Heat Dissipation 25 Coolant Potential 100 Energy Generation 15 Energy Capacity 250 Matter Stores 300 Matter Capacity 300 Sight Range 16 Terrain Scan Range 16 Terrain Scan Density 10 Armor Coverage 800 Evasion (%) 44 Recoil Reduction 2 Item Schematics ----------------- None Robot Schematics ------------------ None Fabricated ------------ Nothing Alien Tech Used ----------------- None Achievements -------------- None Challenges ------------ None Game ------ Seed VariableWeightExtractor Manual? 0 Play Time 00:16:18 Cumulative 446.9 hours Start 2025.04.26 @ 10:56:53 End 2025.04.26 @ 11:13:57 Sessions 1 Manual Loads 0 Difficulty Rogue Special Mode None Game No. 281 Rogue 278 Adventurer 3 Explorer 0 Win Type - Total 8 Types 7/0/1/0/0/0/0/0/0 Lore% 45 Gallery% 73 Achievement% 67 Wizard Run 0 Options --------- Layout 0 ASCII 0 Keyboard 0 Movement Numpad Keybinds 0 Fullscreen 1 Font 18/SmallcapsGlow Map View 76x50 Zoom Use 0% Tactical HUD 1 Map Filters NONE Filters NONE Steam 1 RUN: e680a082-c7ab-45a7-826f-4210dd179493